[Event "Late-Titled-Tuesday-Blitz-March-19-2024"]
[Site "Chess.com"]
[Date "2024.03.19"]
[Round "10"]
[White "AlexeiShirov"]
[Black "Njal28"]
[Result "1/2-1/2"]
[WhiteElo "2862"]
[BlackElo "3042"]
[TimeControl "180+1"]
[EndTime "15:53:34 PDT"]
[Termination "Game drawn by repetition"]

1. e4 {[%clk 0:03:00.9]} 1... e5 {[%clk 0:02:59.6]} 2. Nf3 {[%clk 0:03:00.3]}
2... Nc6 {[%clk 0:03:00.3]} 3. Bb5 {[%clk 0:02:59.5]} 3... a6 {[%clk 0:03:00.3]}
4. Ba4 {[%clk 0:02:58.9]} 4... Nf6 {[%clk 0:03:00.8]} 5. O-O {[%clk 0:02:58.4]}
5... Be7 {[%clk 0:03:01.3]} 6. Re1 {[%clk 0:02:57.7]} 6... b5 {[%clk 0:03:01.6]}
7. Bb3 {[%clk 0:02:57.1]} 7... O-O {[%clk 0:03:02.5]} 8. h3 {[%clk 0:02:55.8]}
8... Bb7 {[%clk 0:02:59.9]} 9. d3 {[%clk 0:02:55.2]} 9... Na5 {[%clk 0:02:59.1]}
10. Nxe5 {[%clk 0:02:53.2]} 10... Nxb3 {[%clk 0:02:59.3]} 11. axb3 {[%clk
0:02:52.6]} 11... d5 {[%clk 0:03:00.1]} 12. exd5 {[%clk 0:02:36.4]} 12... Qxd5
{[%clk 0:03:01]} 13. Nf3 {[%clk 0:02:35]} 13... Rfe8 {[%clk 0:02:59.1]} 14. Nc3
{[%clk 0:02:33.1]} 14... Qh5 {[%clk 0:02:36.4]} 15. Ne5 {[%clk 0:02:22.6]} 15...
Bd6 {[%clk 0:02:23.6]} 16. Qxh5 {[%clk 0:02:17.1]} 16... Nxh5 {[%clk 0:02:24.5]}
17. d4 {[%clk 0:02:15.2]} 17... c5 {[%clk 0:02:16.8]} 18. Be3 {[%clk 0:02:01]}
18... b4 {[%clk 0:01:17.7]} 19. Nc4 {[%clk 0:01:52.1]} 19... Bc7 {[%clk
0:00:42.7]} 20. Na4 {[%clk 0:01:47.1]} 20... cxd4 {[%clk 0:00:42.9]} 21. Bxd4
{[%clk 0:01:46.4]} 21... Nf4 {[%clk 0:00:43.6]} 22. Bb6 {[%clk 0:01:27.5]} 22...
Bxb6 {[%clk 0:00:35.4]} 23. Naxb6 {[%clk 0:01:24]} 23... Nxg2 {[%clk 0:00:17]}
24. Rxe8+ {[%clk 0:01:22.1]} 24... Rxe8 {[%clk 0:00:16.9]} 25. Nd6 {[%clk
0:01:21.1]} 25... Re6 {[%clk 0:00:16.2]} 26. Nxb7 {[%clk 0:01:20.1]} 26... Rxb6
{[%clk 0:00:16.4]} 27. Kxg2 {[%clk 0:01:19.5]} 27... Rxb7 {[%clk 0:00:16.9]} 28.
Rxa6 {[%clk 0:01:18.5]} 28... g6 {[%clk 0:00:17.2]} 29. Rc6 {[%clk 0:01:17.2]}
29... Kg7 {[%clk 0:00:13.1]} 30. Kf3 {[%clk 0:01:15.2]} 30... h5 {[%clk
0:00:12.7]} 31. h4 {[%clk 0:01:12.2]} 31... Rd7 {[%clk 0:00:11.8]} 32. Rc4
{[%clk 0:01:10.5]} 32... Rb7 {[%clk 0:00:12.4]} 33. Kf4 {[%clk 0:01:09.1]} 33...
f6 {[%clk 0:00:09.8]} 34. f3 {[%clk 0:01:05.9]} 34... Rb5 {[%clk 0:00:09.2]} 35.
Rc7+ {[%clk 0:01:04.4]} 35... Kh6 {[%clk 0:00:09.6]} 36. Rc6 {[%clk 0:01:03.7]}
36... Kg7 {[%clk 0:00:10]} 37. Rc7+ {[%clk 0:01:03.5]} 37... Kh6 {[%clk
0:00:10.3]} 38. Rc6 {[%clk 0:01:03.3]} 38... Rf5+ {[%clk 0:00:10]} 39. Kg3
{[%clk 0:01:02.5]} 39... g5 {[%clk 0:00:04.9]} 40. hxg5+ {[%clk 0:01:00.2]}
40... Rxg5+ {[%clk 0:00:05.8]} 41. Kh3 {[%clk 0:00:56.2]} 41... Kg6 {[%clk
0:00:02.6]} 42. Rc4 {[%clk 0:00:55.5]} 42... Rf5 {[%clk 0:00:03.4]} 43. Kg3
{[%clk 0:00:54.1]} 43... Rg5+ {[%clk 0:00:03.3]} 44. Kh3 {[%clk 0:00:53.8]}
44... Rf5 {[%clk 0:00:03.6]} 45. Kg3 {[%clk 0:00:53.3]} 45... Rg5+ {[%clk
0:00:04]} 46. Kh3 {[%clk 0:00:52.7]} 1/2-1/2

[Event "Late-Titled-Tuesday-Blitz-March-19-2024"]
[Site "Chess.com"]
[Date "2024.03.19"]
[Round "10"]
[White "Julianos82"]
[Black "Mariia89"]
[Result "1-0"]
[WhiteElo "2403"]
[BlackElo "2280"]
[TimeControl "180+1"]
[EndTime "15:53:37 PDT"]
[Termination "Julianos82 won by checkmate"]

1. d4 {[%clk 0:03:00.9]} 1... Nf6 {[%clk 0:02:59.3]} 2. Nf3 {[%clk 0:03:00.5]}
2... c5 {[%clk 0:02:59.9]} 3. d5 {[%clk 0:02:59.4]} 3... d6 {[%clk 0:02:59.8]}
4. c4 {[%clk 0:02:59.4]} 4... b5 {[%clk 0:03:00.4]} 5. cxb5 {[%clk 0:02:59.4]}
5... a6 {[%clk 0:03:01]} 6. Nc3 {[%clk 0:02:59.7]} 6... axb5 {[%clk 0:02:59.1]}
7. e4 {[%clk 0:02:59.6]} 7... b4 {[%clk 0:02:58.6]} 8. Nb5 {[%clk 0:02:59.4]}
8... g6 {[%clk 0:02:41.8]} 9. Bg5 {[%clk 0:02:40.5]} 9... Bg7 {[%clk 0:02:42]}
10. Bd3 {[%clk 0:02:32.7]} 10... Qa5 {[%clk 0:02:36.1]} 11. O-O {[%clk
0:02:26.3]} 11... Nxe4 {[%clk 0:01:59.7]} 12. Re1 {[%clk 0:02:11.7]} 12... Nxg5
{[%clk 0:01:58.8]} 13. Nxd6+ {[%clk 0:01:42.6]} 13... Kd8 {[%clk 0:01:42.5]} 14.
Nxg5 {[%clk 0:01:40.6]} 14... exd6 {[%clk 0:01:36.7]} 15. Qf3 {[%clk 0:01:26.2]}
15... Rf8 {[%clk 0:00:51.1]} 16. Nxh7 {[%clk 0:01:17]} 16... Ra7 {[%clk
0:00:46.8]} 17. Nxf8 {[%clk 0:01:03.9]} 17... Bxf8 {[%clk 0:00:46.8]} 18. Qf6+
{[%clk 0:01:03.8]} 18... Be7 {[%clk 0:00:38.7]} 19. Qxf7 {[%clk 0:01:02.1]}
19... b3 {[%clk 0:00:23.7]} 20. Qg8+ {[%clk 0:00:36.8]} 20... Kd7 {[%clk
0:00:20.1]} 21. Bxg6 {[%clk 0:00:36.3]} 21... Qd8 {[%clk 0:00:15.4]} 22. Rxe7+
{[%clk 0:00:25.1]} 22... Qxe7 {[%clk 0:00:15.1]} 23. Bf5+ {[%clk 0:00:23.6]}
23... Kc7 {[%clk 0:00:14.4]} 24. Qxc8+ {[%clk 0:00:23.6]} 24... Kb6 {[%clk
0:00:14]} 25. Qxb8+ {[%clk 0:00:23.3]} 25... Rb7 {[%clk 0:00:14.3]} 26. Qa8
{[%clk 0:00:20.4]} 26... Qe5 {[%clk 0:00:09]} 27. axb3 {[%clk 0:00:17.4]} 27...
Kc7 {[%clk 0:00:04.5]} 28. Qc8+ {[%clk 0:00:16.1]} 28... Kb6 {[%clk 0:00:04.4]}
29. Qc6# {[%clk 0:00:16.2]} 1-0

[Event "Late-Titled-Tuesday-Blitz-March-19-2024"]
[Site "Chess.com"]
[Date "2024.03.19"]
[Round "10"]
[White "AryanTari"]
[Black "newyorkmouse"]
[Result "1-0"]
[WhiteElo "3014"]
[BlackElo "2683"]
[TimeControl "180+1"]
[EndTime "15:53:39 PDT"]
[Termination "AryanTari won on time"]

1. Nf3 {[%clk 0:03:00.9]} 1... c5 {[%clk 0:02:59.8]} 2. e3 {[%clk 0:03:00.7]}
2... Nc6 {[%clk 0:02:58.9]} 3. d4 {[%clk 0:03:01.6]} 3... cxd4 {[%clk
0:02:57.9]} 4. exd4 {[%clk 0:03:02.5]} 4... d5 {[%clk 0:02:58.3]} 5. Ne5 {[%clk
0:02:57.7]} 5... Qc7 {[%clk 0:02:49.9]} 6. Bf4 {[%clk 0:02:48.3]} 6... Qb6
{[%clk 0:02:25.2]} 7. Nc3 {[%clk 0:02:43]} 7... e6 {[%clk 0:02:22.4]} 8. Bb5
{[%clk 0:02:34.2]} 8... Nf6 {[%clk 0:02:18.3]} 9. Qe2 {[%clk 0:02:27.9]} 9...
Be7 {[%clk 0:02:15.9]} 10. Na4 {[%clk 0:02:23.5]} 10... Qa5+ {[%clk 0:02:08.1]}
11. c3 {[%clk 0:02:23.2]} 11... Bd7 {[%clk 0:02:01.5]} 12. Nxd7 {[%clk
0:02:16.3]} 12... Nxd7 {[%clk 0:01:59.9]} 13. b4 {[%clk 0:02:16.2]} 13... Qd8
{[%clk 0:01:49.7]} 14. Nc5 {[%clk 0:01:37.6]} 14... Nxc5 {[%clk 0:01:46.2]} 15.
dxc5 {[%clk 0:01:29.1]} 15... O-O {[%clk 0:01:46.1]} 16. O-O {[%clk 0:01:28.7]}
16... Bf6 {[%clk 0:01:42.5]} 17. Bd6 {[%clk 0:01:19.4]} 17... Re8 {[%clk
0:01:40]} 18. Qf3 {[%clk 0:01:14.2]} 18... a6 {[%clk 0:01:34.7]} 19. Ba4 {[%clk
0:01:13.4]} 19... b5 {[%clk 0:01:33.7]} 20. Bc2 {[%clk 0:01:12.2]} 20... h6
{[%clk 0:01:16.7]} 21. a4 {[%clk 0:01:10.5]} 21... Ne5 {[%clk 0:01:13]} 22. Bxe5
{[%clk 0:00:50.7]} 22... Bxe5 {[%clk 0:01:13.9]} 23. Qd3 {[%clk 0:00:44.3]}
23... Qh4 {[%clk 0:01:08]} 24. f4 {[%clk 0:00:39.7]} 24... Bc7 {[%clk 0:00:41]}
25. axb5 {[%clk 0:00:39.5]} 25... e5 {[%clk 0:00:41.6]} 26. Qh7+ {[%clk
0:00:35.1]} 26... Kf8 {[%clk 0:00:41.7]} 27. b6 {[%clk 0:00:35.8]} 27... Bb8
{[%clk 0:00:40.1]} 28. Ba4 {[%clk 0:00:26.6]} 28... Rd8 {[%clk 0:00:26.1]} 29.
g3 {[%clk 0:00:22.9]} 29... Qh3 {[%clk 0:00:23]} 30. fxe5 {[%clk 0:00:20.7]}
30... Bxe5 {[%clk 0:00:19.7]} 31. Rae1 {[%clk 0:00:20.8]} 31... Qh5 {[%clk
0:00:01.2]} 32. Qh8+ {[%clk 0:00:18.7]} 32... Ke7 {[%clk 0:00:01.3]} 33. Qxg7
{[%clk 0:00:19.4]} 1-0

[Event "Late-Titled-Tuesday-Blitz-March-19-2024"]
[Site "Chess.com"]
[Date "2024.03.19"]
[Round "10"]
[White "rikchessmx"]
[Black "ritanovikova"]
[Result "0-1"]
[WhiteElo "2278"]
[BlackElo "2216"]
[TimeControl "180+1"]
[EndTime "15:53:39 PDT"]
[Termination "ritanovikova won on time"]

1. e4 {[%clk 0:01:36.4]} 1... e5 {[%clk 0:03:00.3]} 2. Nf3 {[%clk 0:01:35.4]}
2... Nc6 {[%clk 0:02:42.4]} 3. Bb5 {[%clk 0:01:34.2]} 3... a6 {[%clk 0:02:41.8]}
4. Ba4 {[%clk 0:01:33.9]} 4... Nf6 {[%clk 0:02:41.8]} 5. O-O {[%clk 0:01:33.9]}
5... b5 {[%clk 0:02:42.5]} 6. Bb3 {[%clk 0:01:33.5]} 6... d6 {[%clk 0:02:42.5]}
7. Re1 {[%clk 0:01:33.8]} 7... Na5 {[%clk 0:02:42.9]} 8. c3 {[%clk 0:01:26.7]}
8... c5 {[%clk 0:02:41.8]} 9. Bc2 {[%clk 0:01:26.3]} 9... Bg4 {[%clk 0:02:41]}
10. d3 {[%clk 0:01:25.7]} 10... Qc7 {[%clk 0:02:40.2]} 11. Nbd2 {[%clk
0:01:25.4]} 11... Be7 {[%clk 0:02:39.6]} 12. h3 {[%clk 0:01:24.7]} 12... Bh5
{[%clk 0:02:38.9]} 13. Nf1 {[%clk 0:01:24.8]} 13... O-O {[%clk 0:02:38.5]} 14.
Ng3 {[%clk 0:01:24.8]} 14... Bxf3 {[%clk 0:02:38.4]} 15. Qxf3 {[%clk 0:01:25.3]}
15... g6 {[%clk 0:02:38.4]} 16. Bh6 {[%clk 0:01:23.5]} 16... Rfe8 {[%clk
0:02:37.8]} 17. Nf5 {[%clk 0:01:21.7]} 17... Bf8 {[%clk 0:02:05]} 18. Bxf8
{[%clk 0:01:20.2]} 18... Rxf8 {[%clk 0:02:00.9]} 19. Qg3 {[%clk 0:01:10.1]}
19... Nh5 {[%clk 0:01:58.7]} 20. Qg4 {[%clk 0:01:05.3]} 20... Kh8 {[%clk
0:01:53.2]} 21. Ne3 {[%clk 0:01:04.3]} 21... Nc6 {[%clk 0:01:39.9]} 22. Nd5
{[%clk 0:01:02.6]} 22... Qc8 {[%clk 0:01:39.7]} 23. Qh4 {[%clk 0:00:55.5]} 23...
Qd8 {[%clk 0:01:36.7]} 24. Qg4 {[%clk 0:00:47.8]} 24... Ne7 {[%clk 0:01:35.7]}
25. Bb3 {[%clk 0:00:40.7]} 25... Nxd5 {[%clk 0:01:29]} 26. Bxd5 {[%clk 0:00:40]}
26... Ra7 {[%clk 0:01:29.5]} 27. g3 {[%clk 0:00:39]} 27... Qe8 {[%clk
0:01:25.5]} 28. Qf3 {[%clk 0:00:33.5]} 28... f5 {[%clk 0:01:24.5]} 29. exf5
{[%clk 0:00:31.3]} 29... gxf5 {[%clk 0:01:24.6]} 30. d4 {[%clk 0:00:27.2]} 30...
Qg6 {[%clk 0:01:16.4]} 31. dxe5 {[%clk 0:00:21.2]} 31... Rg7 {[%clk 0:00:52.9]}
32. exd6 {[%clk 0:00:19.6]} 32... Qxd6 {[%clk 0:00:49.5]} 33. Qxh5 {[%clk
0:00:14.1]} 33... Qxd5 {[%clk 0:00:47.9]} 34. a4 {[%clk 0:00:10.8]} 34... Qg8
{[%clk 0:00:44.1]} 35. Kh2 {[%clk 0:00:07.8]} 35... f4 {[%clk 0:00:43.9]} 36. g4
{[%clk 0:00:06.8]} 36... Rg5 {[%clk 0:00:39.5]} 0-1

[Event "Late-Titled-Tuesday-Blitz-March-19-2024"]
[Site "Chess.com"]
[Date "2024.03.19"]
[Round "10"]
[White "KuzubovYuriy"]
[Black "Rud_Makarian"]
[Result "0-1"]
[WhiteElo "2905"]
[BlackElo "3012"]
[TimeControl "180+1"]
[EndTime "15:53:43 PDT"]
[Termination "Rud_Makarian won on time"]

1. d4 {[%clk 0:03:00.9]} 1... Nf6 {[%clk 0:02:59.5]} 2. Nf3 {[%clk 0:03:01.2]}
2... c5 {[%clk 0:02:59.8]} 3. e3 {[%clk 0:03:00.9]} 3... d5 {[%clk 0:02:59.9]}
4. Bd3 {[%clk 0:02:54.8]} 4... Nc6 {[%clk 0:02:56.7]} 5. c3 {[%clk 0:02:48.4]}
5... Bg4 {[%clk 0:02:54.4]} 6. Nbd2 {[%clk 0:02:48]} 6... e6 {[%clk 0:02:55]} 7.
h3 {[%clk 0:02:43.9]} 7... Bh5 {[%clk 0:02:55.3]} 8. Qa4 {[%clk 0:02:41.9]} 8...
Qc7 {[%clk 0:02:35.6]} 9. Ne5 {[%clk 0:02:36]} 9... Bd6 {[%clk 0:02:34.2]} 10.
f4 {[%clk 0:02:30.5]} 10... O-O {[%clk 0:02:29.6]} 11. O-O {[%clk 0:02:25.2]}
11... Bg6 {[%clk 0:02:23.5]} 12. Nxg6 {[%clk 0:02:16.5]} 12... hxg6 {[%clk
0:02:24.4]} 13. Nf3 {[%clk 0:02:14.8]} 13... a6 {[%clk 0:02:23.2]} 14. Qd1
{[%clk 0:02:11.1]} 14... Ne7 {[%clk 0:02:20]} 15. g4 {[%clk 0:02:07.7]} 15... b5
{[%clk 0:02:14.5]} 16. a3 {[%clk 0:02:02.6]} 16... cxd4 {[%clk 0:02:13.4]} 17.
cxd4 {[%clk 0:01:59.5]} 17... Rac8 {[%clk 0:02:08.9]} 18. Qe2 {[%clk 0:01:49.9]}
18... Ne4 {[%clk 0:02:04.4]} 19. Bxe4 {[%clk 0:01:42.2]} 19... dxe4 {[%clk
0:02:05.3]} 20. Ng5 {[%clk 0:01:42.5]} 20... Qb7 {[%clk 0:02:04.7]} 21. Qg2
{[%clk 0:01:39.1]} 21... f5 {[%clk 0:01:51.4]} 22. Nxe6 {[%clk 0:01:35.9]} 22...
Rf6 {[%clk 0:01:51.6]} 23. Ng5 {[%clk 0:01:35.1]} 23... Nd5 {[%clk 0:01:51]} 24.
Qg3 {[%clk 0:01:26.2]} 24... Rff8 {[%clk 0:01:27.6]} 25. Bd2 {[%clk 0:01:14.8]}
25... Be7 {[%clk 0:01:24.5]} 26. Ne6 {[%clk 0:01:00]} 26... Rf7 {[%clk
0:01:14.8]} 27. Rac1 {[%clk 0:00:57.1]} 27... Rc6 {[%clk 0:01:09.9]} 28. gxf5
{[%clk 0:00:45.4]} 28... gxf5 {[%clk 0:01:07.9]} 29. Ng5 {[%clk 0:00:28.5]}
29... Bxg5 {[%clk 0:01:06.3]} 30. Qxg5 {[%clk 0:00:28.5]} 30... Rff6 {[%clk
0:01:01]} 31. Rxc6 {[%clk 0:00:27.1]} 31... Qxc6 {[%clk 0:01:01.9]} 32. Rc1
{[%clk 0:00:26.9]} 32... Qe6 {[%clk 0:00:59.5]} 33. Kf2 {[%clk 0:00:26.1]} 33...
Rg6 {[%clk 0:00:53.6]} 34. Qd8+ {[%clk 0:00:21.8]} 34... Kh7 {[%clk 0:00:53.9]}
35. Rc8 {[%clk 0:00:20.2]} 35... Rh6 {[%clk 0:00:47.2]} 36. Ke2 {[%clk
0:00:18.5]} 36... Nf6 {[%clk 0:00:39.5]} 37. h4 {[%clk 0:00:17.3]} 37... Qb3
{[%clk 0:00:33.7]} 38. h5 {[%clk 0:00:14.1]} 38... Rxh5 {[%clk 0:00:32.5]} 39.
Kf2 {[%clk 0:00:05.2]} 39... Qd1 {[%clk 0:00:31.2]} 0-1

[Event "Late-Titled-Tuesday-Blitz-March-19-2024"]
[Site "Chess.com"]
[Date "2024.03.19"]
[Round "10"]
[White "chess94cu"]
[Black "GMKrikor"]
[Result "0-1"]
[WhiteElo "2663"]
[BlackElo "2823"]
[TimeControl "180+1"]
[EndTime "15:53:44 PDT"]
[Termination "GMKrikor won by resignation"]

1. e4 {[%clk 0:03:00.9]} 1... c5 {[%clk 0:02:59.7]} 2. Nf3 {[%clk 0:03:00.8]}
2... Nc6 {[%clk 0:02:57.4]} 3. Bb5 {[%clk 0:03:00.3]} 3... Nf6 {[%clk
0:02:57.1]} 4. Bxc6 {[%clk 0:02:59.1]} 4... dxc6 {[%clk 0:02:57]} 5. d3 {[%clk
0:02:58.4]} 5... Bg4 {[%clk 0:02:56.9]} 6. h3 {[%clk 0:02:58.2]} 6... Bh5 {[%clk
0:02:57.1]} 7. Nc3 {[%clk 0:02:55.1]} 7... Nd7 {[%clk 0:02:56.6]} 8. g4 {[%clk
0:02:48.5]} 8... Bg6 {[%clk 0:02:56.5]} 9. Bf4 {[%clk 0:02:48.7]} 9... h5 {[%clk
0:02:52]} 10. g5 {[%clk 0:02:43.6]} 10... e5 {[%clk 0:02:51.8]} 11. Be3 {[%clk
0:02:31.9]} 11... Bd6 {[%clk 0:02:48.6]} 12. Nh4 {[%clk 0:02:31]} 12... Nf8
{[%clk 0:02:43.9]} 13. Ne2 {[%clk 0:02:21.2]} 13... Ne6 {[%clk 0:02:42.6]} 14.
Qd2 {[%clk 0:02:21]} 14... b5 {[%clk 0:02:33.7]} 15. O-O-O {[%clk 0:02:15.5]}
15... a5 {[%clk 0:02:33.1]} 16. Kb1 {[%clk 0:02:07.9]} 16... a4 {[%clk 0:02:32]}
17. f4 {[%clk 0:02:05.8]} 17... exf4 {[%clk 0:02:28]} 18. Nxf4 {[%clk
0:02:06.7]} 18... Bxf4 {[%clk 0:02:20.2]} 19. Bxf4 {[%clk 0:02:07.6]} 19... O-O
{[%clk 0:02:17.8]} 20. Be3 {[%clk 0:01:59.2]} 20... b4 {[%clk 0:02:18]} 21. Nf5
{[%clk 0:01:50.7]} 21... b3 {[%clk 0:02:10.5]} 22. cxb3 {[%clk 0:01:48.4]} 22...
axb3 {[%clk 0:02:10.7]} 23. a3 {[%clk 0:01:49]} 23... Ra4 {[%clk 0:01:47.7]} 24.
Qc3 {[%clk 0:01:42.2]} 24... Bxf5 {[%clk 0:01:46]} 25. exf5 {[%clk 0:01:41]}
25... Nd4 {[%clk 0:01:45.4]} 26. Qxc5 {[%clk 0:01:29.4]} 26... Re8 {[%clk
0:01:42.9]} 27. Bxd4 {[%clk 0:01:09.4]} 27... Rxd4 {[%clk 0:01:42.4]} 28. Qxc6
{[%clk 0:00:57.2]} 28... Rxd3 {[%clk 0:01:25.7]} 29. Rxd3 {[%clk 0:00:55.2]}
29... Qxd3+ {[%clk 0:01:25.3]} 30. Ka1 {[%clk 0:00:55.9]} 30... Rd8 {[%clk
0:01:12]} 31. g6 {[%clk 0:00:27.5]} 31... Qxf5 {[%clk 0:01:10.2]} 32. gxf7+
{[%clk 0:00:26.6]} 32... Qxf7 {[%clk 0:01:10.3]} 33. Qc3 {[%clk 0:00:18.2]}
33... Kh7 {[%clk 0:00:55.7]} 34. Rg1 {[%clk 0:00:18.2]} 34... Rd7 {[%clk
0:00:47.7]} 35. h4 {[%clk 0:00:18]} 35... Qf2 {[%clk 0:00:42.3]} 36. Rb1 {[%clk
0:00:15.2]} 36... Qc2 {[%clk 0:00:36.7]} 37. Qxc2+ {[%clk 0:00:11.2]} 37... bxc2
{[%clk 0:00:36.6]} 38. Rc1 {[%clk 0:00:11.9]} 38... Rd1 {[%clk 0:00:36.8]} 39.
b4 {[%clk 0:00:10.9]} 39... Rxc1+ {[%clk 0:00:36.8]} 40. Kb2 {[%clk 0:00:11.8]}
40... Ra1 {[%clk 0:00:34.3]} 41. Kxc2 {[%clk 0:00:12.4]} 41... Rxa3 {[%clk
0:00:34.5]} 42. b5 {[%clk 0:00:13.2]} 42... Ra5 {[%clk 0:00:32.5]} 0-1

[Event "Late-Titled-Tuesday-Blitz-March-19-2024"]
[Site "Chess.com"]
[Date "2024.03.19"]
[Round "10"]
[White "Kumi29"]
[Black "Misterfox120"]
[Result "0-1"]
[WhiteElo "2563"]
[BlackElo "2484"]
[TimeControl "180+1"]
[EndTime "15:53:47 PDT"]
[Termination "Misterfox120 won by checkmate"]

1. d4 {[%clk 0:03:00.9]} 1... d5 {[%clk 0:02:59.3]} 2. Bg5 {[%clk 0:03:00.1]}
2... f6 {[%clk 0:02:58.5]} 3. Bd2 {[%clk 0:02:59.9]} 3... Nc6 {[%clk 0:02:58.4]}
4. c4 {[%clk 0:02:59.9]} 4... e5 {[%clk 0:02:43.1]} 5. dxe5 {[%clk 0:02:55.7]}
5... d4 {[%clk 0:02:43.6]} 6. exf6 {[%clk 0:02:30.4]} 6... Nxf6 {[%clk
0:02:44.5]} 7. e3 {[%clk 0:02:26]} 7... Bf5 {[%clk 0:02:28]} 8. Nf3 {[%clk
0:02:17.8]} 8... Bc5 {[%clk 0:02:06.6]} 9. exd4 {[%clk 0:02:13.7]} 9... Nxd4
{[%clk 0:02:07.5]} 10. Nxd4 {[%clk 0:02:11.7]} 10... Qxd4 {[%clk 0:02:02.5]} 11.
Qe2+ {[%clk 0:01:57.5]} 11... Kf7 {[%clk 0:02:00.1]} 12. Be3 {[%clk 0:01:57.3]}
12... Bb4+ {[%clk 0:01:54.3]} 13. Nd2 {[%clk 0:01:41.4]} 13... Qxb2 {[%clk
0:01:51.8]} 14. Rd1 {[%clk 0:01:40.5]} 14... Rad8 {[%clk 0:01:03.6]} 15. f3
{[%clk 0:01:08.6]} 15... Bc2 {[%clk 0:00:45.1]} 16. c5 {[%clk 0:00:36.1]} 16...
Bd3 {[%clk 0:00:35.8]} 17. Qxd3 {[%clk 0:00:33.7]} 17... Rxd3 {[%clk 0:00:34.2]}
18. Bxd3 {[%clk 0:00:34.6]} 18... Rd8 {[%clk 0:00:20.3]} 19. Ke2 {[%clk
0:00:26.7]} 19... Nd5 {[%clk 0:00:16.2]} 20. Bc4 {[%clk 0:00:20.4]} 20... Kf8
{[%clk 0:00:12.2]} 21. c6 {[%clk 0:00:08.7]} 21... Nxe3 {[%clk 0:00:05.9]} 22.
cxb7 {[%clk 0:00:05.5]} 22... Nxc4 {[%clk 0:00:04.6]} 23. b8=Q {[%clk
0:00:01.8]} 23... Rxb8 {[%clk 0:00:04.7]} 24. Kd3 {[%clk 0:00:02.2]} 24... Qc3+
{[%clk 0:00:03.7]} 25. Ke4 {[%clk 0:00:02.8]} 25... Qe3+ {[%clk 0:00:03.4]} 26.
Kd5 {[%clk 0:00:02.3]} 26... Qc5+ {[%clk 0:00:01.5]} 27. Ke6 {[%clk 0:00:02]}
27... Re8+ {[%clk 0:00:02.4]} 28. Kd7 {[%clk 0:00:01.7]} 28... Qd6# {[%clk
0:00:02.6]} 0-1

[Event "Late-Titled-Tuesday-Blitz-March-19-2024"]
[Site "Chess.com"]
[Date "2024.03.19"]
[Round "10"]
[White "MikaelyanArman"]
[Black "mbachez"]
[Result "1/2-1/2"]
[WhiteElo "2842"]
[BlackElo "2673"]
[TimeControl "180+1"]
[EndTime "15:53:49 PDT"]
[Termination "Game drawn by repetition"]

1. e4 {[%clk 0:03:00.9]} 1... c6 {[%clk 0:02:58.3]} 2. d4 {[%clk 0:02:45]} 2...
d5 {[%clk 0:02:58.3]} 3. Nc3 {[%clk 0:02:42.2]} 3... dxe4 {[%clk 0:02:58.5]} 4.
Nxe4 {[%clk 0:02:43.1]} 4... Nf6 {[%clk 0:02:58.6]} 5. Bd3 {[%clk 0:02:39.1]}
5... Qxd4 {[%clk 0:02:54.9]} 6. Nf3 {[%clk 0:02:39.2]} 6... Qd8 {[%clk
0:02:54.8]} 7. Qe2 {[%clk 0:02:34.9]} 7... Bg4 {[%clk 0:02:49]} 8. Bf4 {[%clk
0:02:18]} 8... Bxf3 {[%clk 0:02:39.9]} 9. Nxf6+ {[%clk 0:02:11.7]} 9... gxf6
{[%clk 0:02:39.4]} 10. Qxf3 {[%clk 0:02:12.6]} 10... Nd7 {[%clk 0:02:38]} 11.
O-O-O {[%clk 0:02:12.5]} 11... Qa5 {[%clk 0:02:36.7]} 12. Bc4 {[%clk 0:01:59.7]}
12... e6 {[%clk 0:02:27.1]} 13. Rxd7 {[%clk 0:01:37.8]} 13... Kxd7 {[%clk
0:02:25.1]} 14. Rd1+ {[%clk 0:01:38.4]} 14... Ke8 {[%clk 0:02:19.5]} 15. Bd2
{[%clk 0:01:12.4]} 15... Qc5 {[%clk 0:01:40.7]} 16. Qxf6 {[%clk 0:01:05.9]}
16... Qxc4 {[%clk 0:01:33.6]} 17. Qxh8 {[%clk 0:01:05.6]} 17... Rd8 {[%clk
0:01:26.7]} 18. Be3 {[%clk 0:00:35.6]} 18... Rxd1+ {[%clk 0:01:10.6]} 19. Kxd1
{[%clk 0:00:36.5]} 19... Qf1+ {[%clk 0:01:05.2]} 20. Kd2 {[%clk 0:00:36.3]}
20... Qxg2 {[%clk 0:01:05.3]} 21. Qxh7 {[%clk 0:00:18.6]} 21... Qd5+ {[%clk
0:01:04.8]} 22. Qd3 {[%clk 0:00:13.4]} 22... Qxa2 {[%clk 0:01:04.3]} 23. Qd4
{[%clk 0:00:07.7]} 23... a5 {[%clk 0:00:44.3]} 24. Qb6 {[%clk 0:00:06.6]} 24...
Bb4+ {[%clk 0:00:41.3]} 25. Ke2 {[%clk 0:00:06.8]} 25... Qc4+ {[%clk 0:00:30]}
26. Kf3 {[%clk 0:00:04.7]} 26... Qxc2 {[%clk 0:00:28.9]} 27. Qxb7 {[%clk
0:00:03.8]} 27... Qf5+ {[%clk 0:00:23.7]} 28. Ke2 {[%clk 0:00:04.3]} 28... Qc2+
{[%clk 0:00:19.3]} 29. Kf3 {[%clk 0:00:04.5]} 29... Qf5+ {[%clk 0:00:14.8]} 30.
Kg2 {[%clk 0:00:04.9]} 30... Qg4+ {[%clk 0:00:14]} 31. Kf1 {[%clk 0:00:04.7]}
31... Qd1+ {[%clk 0:00:13.8]} 32. Kg2 {[%clk 0:00:05.2]} 32... Qg4+ {[%clk
0:00:13.2]} 33. Kf1 {[%clk 0:00:05.3]} 33... Qd1+ {[%clk 0:00:13]} 34. Kg2
{[%clk 0:00:05.8]} 34... Qg4+ {[%clk 0:00:11.8]} 1/2-1/2